[Event "HUN-ch Rapid 2019"]
[Site "Ajka"]
[Date "2019.07.20"]
[Round "7.8"]
[White "Prohaszka, Peter"]
[Black "Emodi, Barnabas"]
[Result "1-0"]
[ECO "D77"]
[WhiteElo "2598"]
[BlackElo "2365"]
[Annotator "ChessBase"]
[PlyCount "99"]
[EventDate "2019.07.18"]
[EventType "swiss"]
[EventCountry "HUN"]
[SourceTitle "playchess.com"]
[Source "ChessBase"]
[SourceQuality "1"]
[TimeControl "1200+5"]

1. d4 {[%emt 0:00:01]} Nf6 {[%emt 0:00:03]} 2. c4 {[%emt 0:00:02]} g6 {[%emt 0:00:05]} 3. g3 {[%emt 0:00:03]} Bg7 {[%emt 0:00:13]} 4. Bg2 {[%emt 0:00:01]} d5 {[%emt 0:00:19]} 5. Nf3 {[%emt 0:00:47]} O-O {[%emt 0:00:08]} 6. O-O {[%emt 0:00:02]} Nc6 {[%emt 0:00:29]} 7. Nbd2 {[%emt 0:01:07]} dxc4 {[%emt 0:01:19]} 8. Nxc4 {[%emt 0:00:02]} Be6 {[%emt 0:00:07]} 9. b3 {[%emt 0:00:10]} Bd5 {[%emt 0:00:31]} 10. e3 {[%emt 0:00:29]} b5 {[%emt 0:01:01]} 11. Ncd2 {[%emt 0:01:09]} Ne4 {[%emt 0:00:39]} 12. Bb2 {[%emt 0:00:59]} a5 {[%emt 0:02:56]} 13. Nxe4 {[%emt 0:02:21]} Bxe4 {[%emt 0:00:04]} 14. Ne1 {[%emt 0:00:04]} Bxg2 {[%emt 0:00:35]} 15. Nxg2 {[%emt 0:00:02]} a4 {[%emt 0:03:41]} 16. Rc1 {[%emt 0:00:01]} Nb4 {[%emt 0:00:24]} 17. a3 {[%emt 0:00:53]} Nd5 {[%emt 0:00:20]} 18. b4 {[%emt 0:02:05]} Nb6 {[%emt 0:00:30]} 19. Qe2 {[%emt 0:00:01]} Nc4 {[%emt 0:00:18]} 20. Rfd1 {[%emt 0:00:02]} Qd7 {[%emt 0:00:25]} 21. Nf4 {[%emt 0:02:30]} Rfd8 {[%emt 0:00:48]} 22. Nd3 {[%emt 0:00:17]} h5 {[%emt 0:01:28]} 23. h4 {[%emt 0:00:02]} e6 {[%emt 0:00:33]} 24. Rc2 {[%emt 0:01:43]} e5 {[%emt 0:01:29]} 25. dxe5 {[%emt 0:02:58]} Bxe5 {[%emt 0:00:59]} 26. Bc1 {[%emt 0:01:39]} Qe6 {[%emt 0:01:00]} 27. Nc5 {[%emt 0:00:34]} Qh3 {[%emt 0:00:02]} 28. Qf3 {[%emt 0:00:59]} Rxd1+ {[%emt 0:00:10]} 29. Qxd1 {[%emt 0:00:01]} Bd6 {[%emt 0:00:21]} 30. Nxa4 {[%emt 0:00:30]} Ne5 {[%emt 0:00:11]} 31. Nc3 {[%emt 0:00:11]} Ng4 {[%emt 0:00:27]} 32. Qf3 {[%emt 0:00:02]} Rd8 {[%emt 0:00:08]} 33. Qg2 {[%emt 0:00:06]} Qxg2+ {[%emt 0:00:06]} 34. Kxg2 {[%emt 0:00:01]} c6 {[%emt 0:00:05]} 35. Ne4 {[%emt 0:00:01]} f5 {[%emt 0:00:04]} 36. Ng5 {[%emt 0:00:18]} Ne5 {[%emt 0:00:02]} 37. Nf3 {[%emt 0:00:10]} Nc4 {[%emt 0:00:04]} 38. Nd2 {[%emt 0:00:05]} Ne5 {[%emt 0:00:04]} 39. Kf1 {[%emt 0:00:12]} Rc8 {[%emt 0:00:05]} 40. Ke2 {[%emt 0:00:02]} Kf7 {[%emt 0:00:02]} 41. Bb2 {[%emt 0:00:01]} Nd7 {[%emt 0:00:04]} 42. Nb3 {[%emt 0:00:02]} Rc7 {[%emt 0:00:09]} 43. Bd4 {[%emt 0:00:03]} Ke6 {[%emt 0:00:03]} 44. Nc5+ {[%emt 0:00:27]} Bxc5 {[%emt 0:00:06]} 45. Bxc5 {[%emt 0:00:01]} Ne5 {[%emt 0:00:04]} 46. a4 {[%emt 0:00:10]} bxa4 {[%emt 0:00:03]} 47. Ra2 {[%emt 0:00:00]} Kd5 {[%emt 0:00:08]} 48. Rxa4 {[%emt 0:00:03]} Kc4 {[%emt 0:00:03]} 49. Bd6 {[%emt 0:00:05]} Kb3 {[%emt 0:00:08]} 50. Bxc7 {[%emt 0:00:05]} 1-0

[Event "HUN-ch Rapid 2019"]
[Site "Ajka"]
[Date "2019.07.20"]
[Round "7.10"]
[White "Horvath, Peter"]
[Black "Nagy, Bence"]
[Result "1-0"]
[ECO "A48"]
[WhiteElo "2418"]
[BlackElo "2352"]
[Annotator "NA RC"]
[PlyCount "41"]
[EventDate "2019.07.18"]
[EventType "swiss"]
[EventCountry "HUN"]
[SourceTitle "playchess.com"]
[Source "ChessBase"]
[SourceQuality "1"]
[TimeControl "1200+5"]

1. d4 {[%emt 0:00:02]} Nf6 {[%emt 0:00:02]} 2. Nf3 {[%emt 0:00:04]} g6 {[%emt 0:00:03]} 3. c4 {[%emt 0:00:05]} Bg7 {[%emt 0:00:03]} 4. Nc3 {[%emt 0:00:07]} d5 {[%emt 0:00:03]} 5. cxd5 {[%emt 0:00:03]} Nxd5 {[%emt 0:00:04]} 6. Bd2 {[%emt 0:00:09]} O-O {[%emt 0:00:34]} 7. e4 {[%emt 0:00:03]} Nb6 {[%emt 0:00:03]} 8. Be3 {[%emt 0:00:14]} Bg4 {[%emt 0:01:07]} 9. e5 {[%emt 0:00:33]} c5 {[%emt 0:01:33]} 10. dxc5 {[%emt 0:01:54]} N6d7 {[%emt 0:00:03]} 11. Be2 {[%emt 0:03:45]} Nc6 {[%emt 0:00:25]} 12. e6 {[%emt 0:00:44]} Bxc3+ {[%emt 0:03:28]} 13. bxc3 {[%emt 0:00:05]} fxe6 {[%emt 0:01:40]} 14. O-O {[%emt 0:01:29]} Nde5 {[%emt 0:01:01]} 15. Nd4 {[%emt 0:02:25]} Bxe2 {[%emt 0:00:15]} 16. Qxe2 {[%emt 0:00:02]} Qd5 {[%emt 0:03:51]} 17. Rad1 {[%emt 0:00:13]} Nxd4 {[%emt 0:01:56]} 18. Bxd4 {[%emt 0:00:55]} Rf5 {[%emt 0:00:01]} 19. Rfe1 {[%emt 0:01:25]} Rg5 {[%emt 0:00:01]} 20. f4 {[%emt 0:01:42]} Nf3+ {[%emt 0:02:35]} 21. Kh1 1-0

[Event "HUN-ch Rapid 2019"]
[Site "Ajka"]
[Date "2019.07.20"]
[Round "7.11"]
[White "Videki, Sandor"]
[Black "Haszon, David"]
[Result "1-0"]
[ECO "A16"]
[WhiteElo "2401"]
[BlackElo "2279"]
[Annotator "NA"]
[PlyCount "81"]
[EventDate "2019.07.18"]
[EventType "swiss"]
[EventCountry "HUN"]
[SourceTitle "playchess.com"]
[Source "ChessBase"]
[SourceQuality "1"]
[TimeControl "1200+5"]

1. c4 {[%emt 0:00:03]} Nf6 {[%emt 0:00:02]} 2. Nc3 {[%emt 0:00:01]} d6 {[%emt 0:00:13]} 3. d4 {[%emt 0:00:17]} Nbd7 {[%emt 0:00:21]} 4. e4 {[%emt 0:00:22]} e5 {[%emt 0:00:06]} 5. Nf3 {[%emt 0:00:02]} Be7 {[%emt 0:00:08]} 6. Be2 {[%emt 0:00:07]} O-O {[%emt 0:00:06]} 7. O-O {[%emt 0:00:03]} c6 {[%emt 0:00:04]} 8. Re1 {[%emt 0:00:07]} Qc7 {[%emt 0:00:15]} 9. Bf1 {[%emt 0:00:37]} a6 {[%emt 0:00:26]} 10. d5 {[%emt 0:00:42]} Re8 {[%emt 0:01:04]} 11. h3 {[%emt 0:00:14]} Nf8 {[%emt 0:00:20]} 12. Be3 {[%emt 0:00:24]} h6 {[%emt 0:01:06]} 13. b4 {[%emt 0:00:28]} Bd7 {[%emt 0:00:44]} 14. a4 {[%emt 0:02:11]} a5 {[%emt 0:00:32]} 15. bxa5 {[%emt 0:00:58]} Qxa5 {[%emt 0:01:16]} 16. Qb3 {[%emt 0:00:15]} c5 {[%emt 0:01:21]} 17. Reb1 {[%emt 0:01:00]} Ra7 {[%emt 0:00:25]} 18. Qc2 {[%emt 0:00:15]} Rea8 {[%emt 0:00:20]} 19. Nb5 {[%emt 0:00:18]} Bxb5 {[%emt 0:00:07]} 20. cxb5 {[%emt 0:00:16]} Qb6 {[%emt 0:01:35]} 21. Bd2 {[%emt 0:00:54]} Rb8 {[%emt 0:00:46]} 22. Bc3 {[%emt 0:01:34]} Qd8 {[%emt 0:00:22]} 23. a5 {[%emt 0:00:09]} Ng6 {[%emt 0:00:40]} 24. b6 {[%emt 0:00:38]} Raa8 {[%emt 0:00:02]} 25. Nd2 {[%emt 0:01:40]} Nh7 {[%emt 0:01:09]} 26. a6 {[%emt 0:00:49]} bxa6 {[%emt 0:00:22]} 27. b7 {[%emt 0:00:19]} Ra7 {[%emt 0:00:19]} 28. Bxa6 {[%emt 0:00:02]} Qd7 {[%emt 0:00:55]} 29. Qa4 {[%emt 0:00:58]} Nhf8 {[%emt 0:00:56]} 30. Qxd7 {[%emt 0:01:03]} Nxd7 {[%emt 0:00:02]} 31. Nc4 {[%emt 0:00:35]} Nf4 {[%emt 0:00:38]} 32. Kf1 {[%emt 0:00:47]} f5 {[%emt 0:00:25]} 33. Nb6 {[%emt 0:01:11]} Nxb6 {[%emt 0:00:59]} 34. Rxb6 {[%emt 0:00:02]} fxe4 {[%emt 0:00:20]} 35. Rab1 {[%emt 0:00:20]} Kf7 {[%emt 0:01:20]} 36. Rc6 {[%emt 0:00:07]} Nxd5 {[%emt 0:01:13]} 37. Bc4 {[%emt 0:00:06]} Raxb7 {[%emt 0:00:36]} 38. Bxd5+ {[%emt 0:00:04]} Kf6 {[%emt 0:00:13]} 39. Rxb7 {[%emt 0:00:06]} Rxb7 {[%emt 0:00:01]} 40. Rxd6+ {[%emt 0:00:13]} Bxd6 {[%emt 0:00:02]} 41. Bxb7 {[%emt 0:00:02]} 1-0

[Event "HUN-ch Rapid 2019"]
[Site "Ajka"]
[Date "2019.07.20"]
[Round "7.12"]
[White "Gelle, Istvan"]
[Black "Farago, Ivan"]
[Result "1-0"]
[ECO "A45"]
[WhiteElo "2325"]
[BlackElo "2350"]
[Annotator "NA"]
[PlyCount "59"]
[EventDate "2019.07.18"]
[EventType "swiss"]
[EventCountry "HUN"]
[SourceTitle "playchess.com"]
[Source "ChessBase"]
[SourceQuality "1"]
[TimeControl "1200+5"]

1. d4 {[%emt 0:00:02]} Nf6 {[%emt 0:00:02]} 2. Bf4 {[%emt 0:00:02]} e6 {[%emt 0:00:14]} 3. e3 {[%emt 0:00:02]} c5 {[%emt 0:00:10]} 4. c3 {[%emt 0:00:02]} b6 {[%emt 0:00:04]} 5. Nd2 {[%emt 0:00:06]} Bb7 {[%emt 0:00:03]} 6. Ngf3 {[%emt 0:00:02]} Be7 {[%emt 0:00:03]} 7. h3 {[%emt 0:00:05]} O-O {[%emt 0:00:12]} 8. Be2 {[%emt 0:00:02]} d6 {[%emt 0:00:20]} 9. O-O {[%emt 0:00:04]} Nbd7 {[%emt 0:00:01]} 10. a4 {[%emt 0:00:02]} a6 {[%emt 0:00:15]} 11. Bh2 {[%emt 0:00:03]} Re8 {[%emt 0:00:06]} 12. Qb3 {[%emt 0:00:56]} Bf8 {[%emt 0:00:16]} 13. Rfd1 {[%emt 0:00:16]} Qc7 {[%emt 0:00:22]} 14. Nc4 {[%emt 0:02:21]} Ne4 {[%emt 0:01:04]} 15. Bd3 {[%emt 0:00:37]} f5 {[%emt 0:01:17]} 16. Bxe4 {[%emt 0:00:26]} fxe4 {[%emt 0:00:02]} 17. Nfd2 {[%emt 0:00:05]} Bd5 {[%emt 0:00:59]} 18. dxc5 {[%emt 0:00:39]} Qxc5 {[%emt 0:00:22]} 19. Qb4 {[%emt 0:00:55]} Qxb4 {[%emt 0:00:34]} 20. cxb4 {[%emt 0:00:02]} Bxc4 {[%emt 0:00:03]} 21. Nxc4 {[%emt 0:00:01]} d5 {[%emt 0:00:02]} 22. Nd6 {[%emt 0:00:27]} Bxd6 {[%emt 0:00:52]} 23. Bxd6 {[%emt 0:00:02]} Rec8 {[%emt 0:00:11]} 24. Rac1 {[%emt 0:00:42]} b5 {[%emt 0:00:21]} 25. a5 {[%emt 0:00:50]} Kf7 {[%emt 0:00:14]} 26. Kf1 {[%emt 0:00:35]} Ke8 {[%emt 0:00:50]} 27. Ke2 {[%emt 0:00:13]} Kd8 {[%emt 0:00:01]} 28. b3 {[%emt 0:01:08]} Rxc1 {[%emt 0:00:12]} 29. Rxc1 {[%emt 0:00:02]} Rc8 {[%emt 0:00:01]} 30. Be7+ {[%emt 0:00:02] Ra8} 1-0

[Event "HUN-ch Rapid 2019"]
[Site "Ajka"]
[Date "2019.07.20"]
[Round "7.13"]
[White "Sardy, Peter"]
[Black "Popovics, Adam"]
[Result "0-1"]
[ECO "C00"]
[WhiteElo "2353"]
[BlackElo "2365"]
[Annotator "NA"]
[PlyCount "80"]
[EventDate "2019.07.18"]
[EventType "swiss"]
[EventCountry "HUN"]
[SourceTitle "playchess.com"]
[Source "ChessBase"]
[SourceQuality "1"]
[TimeControl "1200+5"]

1. e4 {[%emt 0:00:03]} e6 {[%emt 0:00:21]} 2. d4 {[%emt 0:00:10]} c5 {[%emt 0:00:03]} 3. d5 {[%emt 0:00:26]} exd5 {[%emt 0:00:02]} 4. exd5 {[%emt 0:00:02]} d6 {[%emt 0:00:01]} 5. Nf3 {[%emt 0:00:16]} Be7 {[%emt 0:00:06]} 6. Bb5+ {[%emt 0:00:21]} Bd7 {[%emt 0:00:03]} 7. a4 {[%emt 0:00:11]} Nf6 {[%emt 0:00:06]} 8. O-O {[%emt 0:00:05]} O-O {[%emt 0:00:03]} 9. h3 {[%emt 0:00:26]} Na6 {[%emt 0:00:03]} 10. Nc3 {[%emt 0:00:26]} Nb4 {[%emt 0:00:07]} 11. Re1 {[%emt 0:01:55]} Bf5 {[%emt 0:01:00]} 12. Re2 {[%emt 0:00:25]} a6 {[%emt 0:00:02]} 13. Bc4 {[%emt 0:00:03]} Re8 {[%emt 0:00:02]} 14. a5 {[%emt 0:03:56]} b5 {[%emt 0:02:08]} 15. axb6 {[%emt 0:00:09]} Qxb6 {[%emt 0:00:01]} 16. Bg5 {[%emt 0:01:00]} Qb7 {[%emt 0:00:16]} 17. Nh4 {[%emt 0:01:12]} Bd7 {[%emt 0:00:42]} 18. Qd2 {[%emt 0:03:18]} h6 {[%emt 0:01:06]} 19. Rxe7 {[%emt 0:02:01]} hxg5 {[%emt 0:00:01]} 20. Rxe8+ {[%emt 0:00:02]} Rxe8 {[%emt 0:00:02]} 21. Qxg5 {[%emt 0:00:01]} Nxc2 {[%emt 0:00:03]} 22. Rxa6 {[%emt 0:00:15]} Qxb2 {[%emt 0:00:18]} 23. Qd2 {[%emt 0:01:14]} Qb4 {[%emt 0:01:15]} 24. Bd3 {[%emt 0:00:58]} Ne1 {[%emt 0:03:03]} 25. Nf3 {[%emt 0:00:11]} Nxf3+ {[%emt 0:00:12]} 26. gxf3 {[%emt 0:00:01]} Nxd5 {[%emt 0:03:39]} 27. Rxd6 {[%emt 0:00:07]} Be6 {[%emt 0:01:53]} 28. Ne4 {[%emt 0:01:04]} Qxd2 {[%emt 0:01:16]} 29. Nxd2 {[%emt 0:00:01]} Nf4 {[%emt 0:00:02]} 30. Bf1 {[%emt 0:00:32]} Bxh3 {[%emt 0:00:37]} 31. Bb5 {[%emt 0:01:07]} Re5 {[%emt 0:01:34]} 32. Ne4 {[%emt 0:00:26]} Ne6 {[%emt 0:00:51]} 33. Kh2 {[%emt 0:00:11]} Bf5 {[%emt 0:00:05]} 34. Nd2 {[%emt 0:00:03]} Bg6 {[%emt 0:00:10]} 35. Kg2 {[%emt 0:00:05]} Nf4+ {[%emt 0:00:07]} 36. Kg3 {[%emt 0:00:03]} Ne6 {[%emt 0:00:02]} 37. Kg2 {[%emt 0:00:01]} Kh7 {[%emt 0:00:03]} 38. Bc4 {[%emt 0:00:02]} Nd4 {[%emt 0:00:09]} 39. f4 {[%emt 0:00:04]} Re1 {[%emt 0:00:07]} 40. Kg3 {[%emt 0:00:13]} Nf5+ {[%emt 0:00:01]} 0-1

[Event "HUN-ch Rapid 2019"]
[Site "Ajka"]
[Date "2019.07.20"]
[Round "7.14"]
[White "Varga, Peter"]
[Black "Hardicsay, Peter"]
[Result "1/2-1/2"]
[ECO "E62"]
[WhiteElo "2367"]
[BlackElo "2185"]
[Annotator "NA"]
[PlyCount "60"]
[EventDate "2019.07.18"]
[EventType "swiss"]
[EventCountry "HUN"]
[SourceTitle "playchess.com"]
[Source "ChessBase"]
[SourceQuality "1"]
[TimeControl "1200+5"]

1. Nf3 {[%emt 0:00:04]} Nf6 {[%emt 0:00:06]} 2. g3 {[%emt 0:00:01]} g6 {[%emt 0:00:11]} 3. Bg2 {[%emt 0:00:01]} Bg7 {[%emt 0:00:01]} 4. O-O {[%emt 0:00:03]} O-O {[%emt 0:00:02]} 5. c4 {[%emt 0:00:02]} c6 {[%emt 0:00:27]} 6. d4 {[%emt 0:00:25]} d6 {[%emt 0:00:47]} 7. Nc3 {[%emt 0:00:05]} Qa5 {[%emt 0:00:10]} 8. e4 {[%emt 0:01:04]} e5 {[%emt 0:00:20]} 9. d5 {[%emt 0:00:20]} cxd5 {[%emt 0:01:50]} 10. cxd5 {[%emt 0:00:03]} Bd7 {[%emt 0:00:28]} 11. a3 {[%emt 0:01:09]} Na6 {[%emt 0:02:33]} 12. Bd2 {[%emt 0:00:10]} Rfc8 13. b4 {[%emt 0:00:38]} Qd8 {[%emt 0:00:24]} 14. Ne1 {[%emt 0:00:13]} Nc7 {[%emt 0:01:46]} 15. a4 {[%emt 0:01:24]} b5 {[%emt 0:00:23]} 16. a5 {[%emt 0:00:25]} Na6 {[%emt 0:00:26]} 17. Nd3 {[%emt 0:00:43]} Rc4 {[%emt 0:00:13]} 18. Qb3 {[%emt 0:01:23]} Rac8 {[%emt 0:00:16]} 19. f3 {[%emt 0:00:40]} h5 {[%emt 0:00:57]} 20. Rfc1 {[%emt 0:00:16]} Qc7 {[%emt 0:00:29]} 21. Ne2 {[%emt 0:03:35]} Kh7 {[%emt 0:00:40]} 22. Kf2 {[%emt 0:02:02]} Bh6 {[%emt 0:00:51]} 23. Ke1 {[%emt 0:00:09]} Qb7 {[%emt 0:00:45]} 24. Bxh6 {[%emt 0:00:34]} Kxh6 {[%emt 0:00:01]} 25. Qb2 {[%emt 0:00:02]} Qc7 {[%emt 0:00:37]} 26. Qd2+ {[%emt 0:00:46]} Kg7 {[%emt 0:00:05]} 27. Kd1 {[%emt 0:00:31]} Rxc1+ {[%emt 0:00:29]} 28. Rxc1 {[%emt 0:00:02]} Qb7 {[%emt 0:00:11]} 29. Rxc8 {[%emt 0:00:12]} Qxc8 {[%emt 0:00:10]} 30. Qc3 {[%emt 0:00:38]} Qxc3 1/2-1/2

[Event "HUN-ch Rapid 2019"]
[Site "Ajka"]
[Date "2019.07.20"]
[Round "7.15"]
[White "Karacsonyi, Gellert"]
[Black "Csiszar, Csaba"]
[Result "1-0"]
[ECO "B32"]
[WhiteElo "2315"]
[BlackElo "2432"]
[Annotator "NA"]
[PlyCount "87"]
[EventDate "2019.07.18"]
[EventType "swiss"]
[EventCountry "HUN"]
[SourceTitle "playchess.com"]
[Source "ChessBase"]
[SourceQuality "1"]
[TimeControl "1200+5"]

1. e4 {[%emt 0:00:01]} c5 {[%emt 0:00:00]} 2. Nf3 {[%emt 0:00:02]} Nc6 {[%emt 0:00:01]} 3. d4 {[%emt 0:00:00]} cxd4 {[%emt 0:00:01]} 4. Nxd4 {[%emt 0:00:01]} e5 {[%emt 0:00:01]} 5. Nb5 {[%emt 0:00:07]} d6 {[%emt 0:00:02]} 6. N1c3 {[%emt 0:00:04]} a6 {[%emt 0:00:01]} 7. Na3 {[%emt 0:00:02]} b5 {[%emt 0:00:00]} 8. Nd5 {[%emt 0:00:01]} Nge7 {[%emt 0:00:01]} 9. c4 {[%emt 0:00:01]} Nd4 {[%emt 0:00:02]} 10. Bd3 {[%emt 0:00:31]} Nxd5 {[%emt 0:00:04]} 11. cxd5 {[%emt 0:00:15]} g6 {[%emt 0:00:04]} 12. O-O {[%emt 0:00:03]} Bg7 {[%emt 0:00:01]} 13. Nc2 {[%emt 0:00:28]} Bd7 {[%emt 0:00:08]} 14. Nxd4 {[%emt 0:00:34]} exd4 {[%emt 0:00:02]} 15. Bf4 {[%emt 0:00:02]} Qb6 {[%emt 0:00:24]} 16. Qd2 {[%emt 0:00:13]} h6 {[%emt 0:00:43]} 17. Qb4 {[%emt 0:00:25]} Bf8 {[%emt 0:00:49]} 18. Rfe1 {[%emt 0:00:27]} a5 {[%emt 0:00:01]} 19. Qd2 {[%emt 0:00:01]} Bg7 {[%emt 0:00:05]} 20. e5 {[%emt 0:00:22]} dxe5 {[%emt 0:00:03]} 21. Bxe5 {[%emt 0:00:01]} O-O {[%emt 0:00:08]} 22. Qf4 {[%emt 0:04:29]} Rac8 {[%emt 0:00:10]} 23. Bxg7 {[%emt 0:00:20]} Kxg7 {[%emt 0:00:02]} 24. Re7 {[%emt 0:00:04]} Rcd8 {[%emt 0:00:48]} 25. d6 {[%emt 0:00:24]} Be8 {[%emt 0:02:41]} 26. Qe5+ {[%emt 0:00:29]} Kg8 {[%emt 0:00:01]} 27. Re1 {[%emt 0:00:18]} Qc6 {[%emt 0:06:19]} 28. h4 {[%emt 0:00:31]} h5 {[%emt 0:00:13]} 29. g4 {[%emt 0:02:30]} Qf3 {[%emt 0:04:30]} 30. Be2 {[%emt 0:04:01]} Qh3 {[%emt 0:00:03]} 31. gxh5 {[%emt 0:04:34]} Bc6 {[%emt 0:00:38]} 32. Qh2 {[%emt 0:00:07]} Qxh2+ {[%emt 0:01:02]} 33. Kxh2 {[%emt 0:00:01]} Rxd6 {[%emt 0:00:47]} 34. Bd3 {[%emt 0:00:27]} Rf6 {[%emt 0:00:33]} 35. R1e2 {[%emt 0:00:28]} gxh5 {[%emt 0:00:06]} 36. R7e5 {[%emt 0:00:05]} Rb8 {[%emt 0:01:40]} 37. Rg5+ {[%emt 0:00:04]} Kf8 {[%emt 0:00:06]} 38. Rxh5 {[%emt 0:00:02]} Bf3 {[%emt 0:00:26]} 39. Rh8+ Kg7 40. Rh7+ {[%emt 0:00:12]} Kg8 {[%emt 0:00:02]} 41. Re5 {[%emt 0:00:01]} Rfb6 {[%emt 0:00:29]} 42. Rg5+ {[%emt 0:00:09]} Kf8 {[%emt 0:00:01]} 43. Rf5 {[%emt 0:00:01]} f6 {[%emt 0:00:03]} 44. Rxf3 {[%emt 0:00:02]} 1-0

[Event "HUN-ch Rapid 2019"]
[Site "Ajka"]
[Date "2019.07.20"]
[Round "7.17"]
[White "Deak, Sandor"]
[Black "Borhy, Marcell"]
[Result "1-0"]
[ECO "A41"]
[WhiteElo "2279"]
[BlackElo "2382"]
[Annotator "NA"]
[PlyCount "71"]
[EventDate "2019.07.18"]
[EventType "swiss"]
[EventCountry "HUN"]
[SourceTitle "playchess.com"]
[Source "ChessBase"]
[SourceQuality "1"]
[TimeControl "1200+5"]

1. d4 {[%emt 0:00:01]} d6 {[%emt 0:00:03]} 2. c4 {[%emt 0:00:02]} e5 {[%emt 0:00:01]} 3. d5 {[%emt 0:00:01]} f5 {[%emt 0:00:51]} 4. e4 {[%emt 0:00:01]} Nf6 {[%emt 0:00:54]} 5. exf5 {[%emt 0:00:20]} Bxf5 {[%emt 0:00:02]} 6. Ne2 {[%emt 0:00:05]} a5 {[%emt 0:00:49]} 7. Ng3 {[%emt 0:00:04]} Bg6 {[%emt 0:00:07]} 8. Nc3 {[%emt 0:00:02]} Na6 {[%emt 0:00:21]} 9. Be3 {[%emt 0:00:51]} Be7 {[%emt 0:00:25]} 10. f3 {[%emt 0:01:11]} c6 {[%emt 0:02:12]} 11. Bd3 {[%emt 0:02:04]} Bxd3 {[%emt 0:00:36]} 12. Qxd3 {[%emt 0:00:01]} O-O {[%emt 0:01:59]} 13. O-O {[%emt 0:00:06]} Nb4 {[%emt 0:00:37]} 14. Qd2 {[%emt 0:00:03]} cxd5 {[%emt 0:00:02]} 15. cxd5 {[%emt 0:00:07]} Qd7 {[%emt 0:00:13]} 16. a3 {[%emt 0:02:23]} Na6 {[%emt 0:00:03]} 17. Nge4 {[%emt 0:00:16]} b5 {[%emt 0:01:30]} 18. a4 {[%emt 0:01:30]} b4 {[%emt 0:00:17]} 19. Nb5 {[%emt 0:00:02]} Rfc8 {[%emt 0:01:49]} 20. Rac1 {[%emt 0:00:05]} Ne8 {[%emt 0:01:31]} 21. Rxc8 {[%emt 0:02:13]} Rxc8 {[%emt 0:00:23]} 22. Na7 {[%emt 0:00:01]} Ra8 {[%emt 0:00:15]} 23. Nc6 {[%emt 0:00:01]} Bf8 {[%emt 0:00:14]} 24. f4 {[%emt 0:00:20]} exf4 {[%emt 0:00:50]} 25. Bxf4 {[%emt 0:00:03]} Nc5 {[%emt 0:00:08]} 26. Nxc5 {[%emt 0:01:08]} dxc5 {[%emt 0:00:01]} 27. Ne5 {[%emt 0:00:12]} Qb7 {[%emt 0:02:12]} 28. Nc4 {[%emt 0:00:55]} Rd8 {[%emt 0:00:14]} 29. d6 Nf6 {[%emt 0:00:44]} 30. b3 {[%emt 0:01:49]} Nd5 {[%emt 0:01:19]} 31. Bg5 {[%emt 0:00:14]} Rd7 {[%emt 0:00:08]} 32. Qf2 {[%emt 0:00:32]} Qa8 {[%emt 0:01:07]} 33. Ne5 {[%emt 0:00:05]} Ra7 {[%emt 0:00:18]} 34. d7 {[%emt 0:00:05]} Nf6 {[%emt 0:00:16]} 35. Bxf6 {[%emt 0:00:01]} gxf6 {[%emt 0:00:01]} 36. Qxf6 {[%emt 0:00:01]} 1-0

[Event "HUN-ch Rapid 2019"]
[Site "Ajka"]
[Date "2019.07.20"]
[Round "7.18"]
[White "Horvath, Tamas"]
[Black "Kovacs, Marton"]
[Result "1-0"]
[ECO "C42"]
[WhiteElo "2306"]
[BlackElo "2147"]
[Annotator "NA"]
[PlyCount "107"]
[EventDate "2019.07.18"]
[EventType "swiss"]
[EventCountry "HUN"]
[SourceTitle "playchess.com"]
[Source "ChessBase"]
[SourceQuality "1"]
[TimeControl "1200+5"]

1. e4 {[%emt 0:00:03]} e5 {[%emt 0:00:00]} 2. Nf3 {[%emt 0:00:02]} Nf6 {[%emt 0:00:01]} 3. Nc3 {[%emt 0:00:13]} Bb4 {[%emt 0:00:01]} 4. Nxe5 {[%emt 0:00:23]} O-O {[%emt 0:00:03]} 5. Nd3 {[%emt 0:00:05]} Bxc3 {[%emt 0:00:02]} 6. dxc3 {[%emt 0:00:02]} Nxe4 {[%emt 0:00:16]} 7. Be2 {[%emt 0:00:03]} d5 {[%emt 0:00:18]} 8. O-O {[%emt 0:00:04]} Nd7 {[%emt 0:00:23]} 9. Be3 {[%emt 0:02:03]} Ndf6 {[%emt 0:02:23]} 10. f3 {[%emt 0:00:32]} Nd6 {[%emt 0:00:22]} 11. Bf2 {[%emt 0:00:08]} c6 {[%emt 0:00:37]} 12. b3 {[%emt 0:00:18]} Re8 {[%emt 0:01:09]} 13. Re1 {[%emt 0:00:09]} Nf5 {[%emt 0:00:48]} 14. Qd2 {[%emt 0:00:10]} Qa5 {[%emt 0:01:35]} 15. a4 {[%emt 0:03:00]} Qc7 {[%emt 0:03:47]} 16. Bf1 {[%emt 0:00:20]} Bd7 {[%emt 0:00:20]} 17. g4 {[%emt 0:01:01]} Ne7 {[%emt 0:01:11]} 18. a5 {[%emt 0:02:25]} Ng6 {[%emt 0:03:35]} 19. Bg3 {[%emt 0:01:19]} Rxe1 {[%emt 0:00:01]} 20. Qxe1 {[%emt 0:00:10]} Qc8 {[%emt 0:00:19]} 21. Ne5 {[%emt 0:00:40]} Qf8 {[%emt 0:01:03]} 22. Nxg6 {[%emt 0:00:09]} hxg6 {[%emt 0:00:09]} 23. Qe3 {[%emt 0:00:25]} c5 {[%emt 0:01:22]} 24. Re1 {[%emt 0:01:22]} Re8 {[%emt 0:00:05]} 25. Qd2 {[%emt 0:00:06]} Rxe1 {[%emt 0:00:02]} 26. Qxe1 {[%emt 0:00:01]} Qe8 {[%emt 0:00:15]} 27. Qxe8+ {[%emt 0:00:13]} Nxe8 {[%emt 0:00:15]} 28. Bb8 {[%emt 0:00:04]} a6 {[%emt 0:00:17]} 29. Ba7 {[%emt 0:00:02]} c4 {[%emt 0:00:23]} 30. bxc4 {[%emt 0:00:01]} dxc4 {[%emt 0:00:00]} 31. Bxc4 {[%emt 0:00:02]} Bc6 {[%emt 0:00:01]} 32. Kf2 {[%emt 0:00:14]} Nd6 {[%emt 0:00:01]} 33. Bd3 {[%emt 0:00:07]} Nb5 {[%emt 0:00:18]} 34. Bd4 {[%emt 0:00:22]} g5 {[%emt 0:00:01]} 35. Ke3 {[%emt 0:00:14]} f6 {[%emt 0:00:03]} 36. f4 {[%emt 0:00:04]} gxf4+ {[%emt 0:00:07]} 37. Kxf4 {[%emt 0:00:02]} Kf7 {[%emt 0:00:09]} 38. Bc4+ {[%emt 0:00:14]} Kg6 {[%emt 0:00:22]} 39. h4 {[%emt 0:00:06]} Kh6 {[%emt 0:00:25]} 40. g5+ {[%emt 0:00:27]} fxg5+ {[%emt 0:00:04]} 41. hxg5+ {[%emt 0:00:02]} Kh7 {[%emt 0:00:03]} 42. Bd3+ {[%emt 0:00:10]} Kg8 {[%emt 0:00:27]} 43. Ke5 {[%emt 0:00:27]} Kf7 {[%emt 0:00:06]} 44. g6+ {[%emt 0:00:34]} Ke7 {[%emt 0:00:04]} 45. Bc5+ {[%emt 0:00:08]} Ke8 {[%emt 0:00:02]} 46. c4 {[%emt 0:00:15]} Nc3 {[%emt 0:00:15]} 47. Bd4 {[%emt 0:00:32]} Na4 {[%emt 0:00:06]} 48. Kd6 {[%emt 0:00:07]} Kf8 {[%emt 0:00:00]} 49. Bf5 {[%emt 0:00:17]} Be8 {[%emt 0:00:04]} 50. Kc7 {[%emt 0:00:19]} Bc6 {[%emt 0:00:03]} 51. Bc8 {[%emt 0:00:16]} Be8 {[%emt 0:00:10]} 52. Bxb7 {[%emt 0:00:06]} Bxg6 {[%emt 0:00:02]} 53. Bxa6 {[%emt 0:00:04]} Bxc2 {[%emt 0:00:02]} 54. Bb5 {[%emt 0:00:01]} 1-0